[Event "*** Titled Tuesday Blitz"]
[Site "Chess.com"]
[Date "2019.12.03"]
[Round "7"]
[White "Satscho"]
[Black "CzechmVIII"]
[Result "1-0"]
[WhiteElo "2341"]
[BlackElo "2127"]
[TimeControl "180+2"]
[EndTime "14:35:41 PST"]
[Termination "Satscho won by resignation"]

1. e4 {[%clk 0:03:01.9]} 1... c5 {[%clk 0:02:59.8]} 2. Nf3 {[%clk 0:03:01.9]}
2... d6 {[%clk 0:02:59.9]} 3. g3 {[%clk 0:03:01.1]} 3... b6 {[%clk 0:02:56.4]}
4. Bg2 {[%clk 0:03:00]} 4... Bb7 {[%clk 0:02:57.5]} 5. d3 {[%clk 0:02:57.6]}
5... e6 {[%clk 0:02:52.9]} 6. O-O {[%clk 0:02:58.6]} 6... Nf6 {[%clk 0:02:53.7]}
7. Re1 {[%clk 0:02:57.8]} 7... Be7 {[%clk 0:02:53.7]} 8. c3 {[%clk 0:02:57.9]}
8... O-O {[%clk 0:02:52.6]} 9. Nbd2 {[%clk 0:02:57.5]} 9... Nbd7 {[%clk
0:02:51.5]} 10. b3 {[%clk 0:02:56.8]} 10... Ne5 {[%clk 0:02:40.3]} 11. Qe2
{[%clk 0:02:36.8]} 11... Nxf3+ {[%clk 0:02:16.5]} 12. Nxf3 {[%clk 0:02:35.2]}
12... Qc7 {[%clk 0:02:13.6]} 13. Bb2 {[%clk 0:02:35.5]} 13... Rfe8 {[%clk
0:02:08.5]} 14. Rac1 {[%clk 0:02:36.1]} 14... Bf8 {[%clk 0:02:01.6]} 15. h4
{[%clk 0:02:23]} 15... e5 {[%clk 0:01:38.3]} 16. a3 {[%clk 0:02:10]} 16... d5
{[%clk 0:01:19]} 17. exd5 {[%clk 0:02:00.5]} 17... Nxd5 {[%clk 0:01:19.9]} 18.
h5 {[%clk 0:02:01.4]} 18... Nf6 {[%clk 0:01:14.3]} 19. Nd2 {[%clk 0:01:51.8]}
19... Bxg2 {[%clk 0:01:12.1]} 20. Kxg2 {[%clk 0:01:53.7]} 20... Qb7+ {[%clk
0:01:03.4]} 21. Ne4 {[%clk 0:01:54.5]} 21... Rad8 {[%clk 0:00:57.6]} 22. Qf3
{[%clk 0:01:52.5]} 22... Nxe4 {[%clk 0:00:54.4]} 23. dxe4 {[%clk 0:01:54.4]}
23... Rd6 {[%clk 0:00:43.9]} 24. c4 {[%clk 0:01:43.4]} 24... Qd7 {[%clk
0:00:20.1]} 25. Rcd1 {[%clk 0:01:41.2]} 25... Qe6 {[%clk 0:00:18]} 26. Rd5
{[%clk 0:01:42.2]} 26... f6 {[%clk 0:00:15.9]} 27. Red1 {[%clk 0:01:42]} 27...
Rxd5 {[%clk 0:00:16.5]} 28. exd5 {[%clk 0:01:37.7]} 28... Qf7 {[%clk 0:00:17.2]}
29. Re1 {[%clk 0:01:30.2]} 29... Bd6 {[%clk 0:00:17.5]} 30. Qf5 {[%clk
0:01:29.9]} 30... g6 {[%clk 0:00:17]} 31. hxg6 {[%clk 0:01:31.8]} 31... hxg6
{[%clk 0:00:18.6]} 32. Qg4 {[%clk 0:01:30.3]} 32... Kg7 {[%clk 0:00:19.1]} 33.
Rh1 {[%clk 0:01:31.1]} 33... Rh8 {[%clk 0:00:19.6]} 34. Rxh8 {[%clk 0:01:31.2]}
34... Kxh8 {[%clk 0:00:21.5]} 35. Bc3 {[%clk 0:01:17.6]} 35... Kg7 {[%clk
0:00:22.3]} 36. Qe4 {[%clk 0:01:16.8]} 36... Qe7 {[%clk 0:00:20.9]} 37. g4
{[%clk 0:01:08.8]} 37... Qd7 {[%clk 0:00:17.9]} 38. f3 {[%clk 0:01:08.8]} 38...
Qf7 {[%clk 0:00:16.5]} 39. g5 {[%clk 0:01:06.7]} 39... f5 {[%clk 0:00:12]} 40.
Bxe5+ {[%clk 0:01:07.3]} 40... Bxe5 {[%clk 0:00:13.5]} 41. Qxe5+ {[%clk
0:01:09.2]} 41... Kh7 {[%clk 0:00:14.9]} 42. d6 {[%clk 0:01:06.4]} 42... Kg8
{[%clk 0:00:12.1]} 43. Kg3 {[%clk 0:01:04.3]} 43... f4+ {[%clk 0:00:12.5]} 44.
Qxf4 {[%clk 0:01:04.6]} 44... Qd7 {[%clk 0:00:13.6]} 45. Qf6 {[%clk 0:01:04.5]}
45... b5 {[%clk 0:00:10.6]} 46. Qxg6+ {[%clk 0:01:05.5]} 46... Kf8 {[%clk
0:00:11.7]} 47. Qf6+ {[%clk 0:01:06.9]} 47... Ke8 {[%clk 0:00:13.1]} 48. Qe7+
{[%clk 0:01:06.2]} 48... Qxe7 {[%clk 0:00:14.2]} 49. dxe7 {[%clk 0:01:08.1]}
49... bxc4 {[%clk 0:00:15.1]} 50. bxc4 {[%clk 0:01:09.2]} 50... Kxe7 {[%clk
0:00:16.4]} 51. Kf4 {[%clk 0:01:10.2]} 51... Ke6 {[%clk 0:00:17.6]} 52. Ke4
{[%clk 0:01:11.9]} 1-0

[Event "*** Titled Tuesday Blitz"]
[Site "Chess.com"]
[Date "2019.12.03"]
[Round "7"]
[White "albi1999"]
[Black "Radzio1987"]
[Result "1-0"]
[WhiteElo "2618"]
[BlackElo "2844"]
[TimeControl "180+2"]
[EndTime "14:35:46 PST"]
[Termination "albi1999 won by resignation"]

1. d4 {[%clk 0:03:01.9]} 1... Nf6 {[%clk 0:02:59.6]} 2. c4 {[%clk 0:03:02.9]}
2... e6 {[%clk 0:03:00.7]} 3. Nf3 {[%clk 0:03:04]} 3... b6 {[%clk 0:03:01.3]} 4.
g3 {[%clk 0:03:05]} 4... Ba6 {[%clk 0:03:02.2]} 5. b3 {[%clk 0:03:06.1]} 5...
Bb4+ {[%clk 0:03:02.9]} 6. Bd2 {[%clk 0:03:07]} 6... Be7 {[%clk 0:03:03.6]} 7.
Bg2 {[%clk 0:03:07.6]} 7... d5 {[%clk 0:03:03.2]} 8. cxd5 {[%clk 0:03:07.2]}
8... exd5 {[%clk 0:03:05.1]} 9. O-O {[%clk 0:03:08.4]} 9... O-O {[%clk 0:03:06]}
10. Nc3 {[%clk 0:03:06.1]} 10... Nbd7 {[%clk 0:03:06.7]} 11. Qc2 {[%clk
0:02:57.3]} 11... Re8 {[%clk 0:03:04.3]} 12. Rfd1 {[%clk 0:02:38.1]} 12... Bb4
{[%clk 0:02:52.3]} 13. e3 {[%clk 0:02:28.2]} 13... Bf8 {[%clk 0:02:24.7]} 14.
Bc1 {[%clk 0:02:23.3]} 14... Rc8 {[%clk 0:02:19.3]} 15. Bb2 {[%clk 0:02:23.5]}
15... c6 {[%clk 0:02:11.1]} 16. Rac1 {[%clk 0:02:23.1]} 16... Bd6 {[%clk
0:02:10.7]} 17. a4 {[%clk 0:02:12.3]} 17... Qe7 {[%clk 0:02:10.5]} 18. Qb1
{[%clk 0:02:04.1]} 18... h6 {[%clk 0:02:08.5]} 19. Nh4 {[%clk 0:02:02.8]} 19...
Qf8 {[%clk 0:02:04.4]} 20. Bh3 {[%clk 0:01:53.7]} 20... Rcd8 {[%clk 0:01:51.5]}
21. Qc2 {[%clk 0:01:47.3]} 21... Bb7 {[%clk 0:01:51]} 22. Bg2 {[%clk 0:01:38.8]}
22... Bb8 {[%clk 0:01:31.1]} 23. Ra1 {[%clk 0:01:35.3]} 23... Qd6 {[%clk
0:01:18.3]} 24. Nf5 {[%clk 0:01:25.5]} 24... Qc7 {[%clk 0:01:08.9]} 25. Ba3
{[%clk 0:01:26.2]} 25... Nf8 {[%clk 0:01:09.6]} 26. Rac1 {[%clk 0:01:17.5]}
26... Ne6 {[%clk 0:01:10.3]} 27. e4 {[%clk 0:01:00]} 27... dxe4 {[%clk
0:01:01.1]} 28. Nxe4 {[%clk 0:01:01.9]} 28... Nxe4 {[%clk 0:01:00.7]} 29. Bxe4
{[%clk 0:01:02.9]} 29... Ng5 {[%clk 0:01:01.7]} 30. Bxc6 {[%clk 0:00:54]} 30...
Nf3+ {[%clk 0:00:43]} 31. Kh1 {[%clk 0:00:31.1]} 31... Ne1 {[%clk 0:00:30.5]}
32. Qc3 {[%clk 0:00:23.5]} 32... Qd7 {[%clk 0:00:13.2]} 33. g4 {[%clk 0:00:11]}
33... Re6 {[%clk 0:00:07.9]} 34. d5 {[%clk 0:00:09.8]} 34... Qxd5+ {[%clk
0:00:08]} 35. Rxd5 {[%clk 0:00:08.9]} 35... Rxd5 {[%clk 0:00:05.3]} 36. Bxb7
{[%clk 0:00:08.7]} 1-0

[Event "*** Titled Tuesday Blitz"]
[Site "Chess.com"]
[Date "2019.12.03"]
[Round "7"]
[White "allvim"]
[Black "masrahi"]
[Result "1-0"]
[WhiteElo "2183"]
[BlackElo "1945"]
[TimeControl "180+2"]
[EndTime "14:35:51 PST"]
[Termination "allvim won on time"]

1. e4 {[%clk 0:03:01.9]} 1... c6 {[%clk 0:03:01.1]} 2. d4 {[%clk 0:02:52]} 2...
d5 {[%clk 0:03:03]} 3. Nc3 {[%clk 0:02:52]} 3... dxe4 {[%clk 0:03:03.8]} 4. Nxe4
{[%clk 0:02:52.8]} 4... Nd7 {[%clk 0:03:05.5]} 5. Qe2 {[%clk 0:02:52.3]} 5... e6
{[%clk 0:02:59]} 6. Nf3 {[%clk 0:02:51.8]} 6... Ngf6 {[%clk 0:02:58.5]} 7. Bg5
{[%clk 0:02:41.3]} 7... Be7 {[%clk 0:02:57.6]} 8. O-O-O {[%clk 0:02:38.4]} 8...
Qc7 {[%clk 0:02:51.5]} 9. Kb1 {[%clk 0:02:15]} 9... O-O {[%clk 0:02:41.5]} 10.
g4 {[%clk 0:02:15]} 10... c5 {[%clk 0:02:41.8]} 11. Bxf6 {[%clk 0:02:09.1]}
11... Nxf6 {[%clk 0:02:43.7]} 12. Nxf6+ {[%clk 0:02:08.7]} 12... Bxf6 {[%clk
0:02:44.4]} 13. g5 {[%clk 0:02:10.6]} 13... Bxd4 {[%clk 0:02:42.9]} 14. Nxd4
{[%clk 0:02:11.2]} 14... cxd4 {[%clk 0:02:43.5]} 15. Rxd4 {[%clk 0:02:11.9]}
15... Bd7 {[%clk 0:02:11.2]} 16. Rh4 {[%clk 0:02:06.5]} 16... g6 {[%clk
0:01:29.2]} 17. Rg1 {[%clk 0:01:34.1]} 17... Bc6 {[%clk 0:01:24.5]} 18. Rg3
{[%clk 0:01:34.3]} 18... Rad8 {[%clk 0:01:22.3]} 19. Rgh3 {[%clk 0:01:33.5]}
19... Qd6 {[%clk 0:01:22.4]} 20. Kc1 {[%clk 0:01:15.8]} 20... h5 {[%clk
0:01:21.8]} 21. gxh6 {[%clk 0:00:48.9]} 21... Bb5 {[%clk 0:01:21.9]} 22. c4
{[%clk 0:00:35.8]} 22... Ba4 {[%clk 0:01:01.6]} 23. b3 {[%clk 0:00:34.9]} 23...
Qa3+ {[%clk 0:00:59.8]} 24. Kb1 {[%clk 0:00:31.5]} 24... Bc6 {[%clk 0:00:30.9]}
25. h7+ {[%clk 0:00:21.4]} 25... Kh8 {[%clk 0:00:31.6]} 26. Qb2+ {[%clk
0:00:22]} 26... Qxb2+ {[%clk 0:00:31.7]} 27. Kxb2 {[%clk 0:00:23.9]} 27... Rd2+
{[%clk 0:00:32.1]} 28. Kc3 {[%clk 0:00:23.9]} 28... Rxf2 {[%clk 0:00:33.3]} 29.
Bd3 {[%clk 0:00:24.3]} 29... Rf3 {[%clk 0:00:32.1]} 30. Rxf3 {[%clk 0:00:23]}
30... Bxf3 {[%clk 0:00:34]} 31. Rf4 {[%clk 0:00:23.7]} 31... Bc6 {[%clk
0:00:28.7]} 32. Bxg6 {[%clk 0:00:23.4]} 32... Kg7 {[%clk 0:00:16.7]} 33. Rxf7+
{[%clk 0:00:23.4]} 33... Rxf7 {[%clk 0:00:17.6]} 34. Bxf7 {[%clk 0:00:24]} 34...
Kxh7 {[%clk 0:00:19.5]} 35. Bxe6 {[%clk 0:00:24.7]} 35... Kh6 {[%clk 0:00:19.5]}
36. Bd5 {[%clk 0:00:25.4]} 1-0

[Event "*** Titled Tuesday Blitz"]
[Site "Chess.com"]
[Date "2019.12.03"]
[Round "7"]
[White "AliKa2810"]
[Black "resha1988"]
[Result "1/2-1/2"]
[WhiteElo "2552"]
[BlackElo "2740"]
[TimeControl "180+2"]
[EndTime "14:35:53 PST"]
[Termination "Game drawn by agreement"]

1. d4 {[%clk 0:03:01.9]} 1... Nf6 {[%clk 0:03:00.5]} 2. c4 {[%clk 0:03:02.1]}
2... c6 {[%clk 0:03:00]} 3. Nc3 {[%clk 0:03:02.7]} 3... d5 {[%clk 0:03:01.5]} 4.
Nf3 {[%clk 0:03:04]} 4... dxc4 {[%clk 0:03:02.2]} 5. a4 {[%clk 0:03:05.2]} 5...
e6 {[%clk 0:03:02.5]} 6. e3 {[%clk 0:03:04]} 6... c5 {[%clk 0:03:03.5]} 7. Bxc4
{[%clk 0:03:05.1]} 7... Nc6 {[%clk 0:03:04.7]} 8. O-O {[%clk 0:03:05.7]} 8...
Be7 {[%clk 0:03:03]} 9. Qe2 {[%clk 0:03:03.8]} 9... O-O {[%clk 0:03:03.5]} 10.
Rd1 {[%clk 0:03:04.7]} 10... cxd4 {[%clk 0:03:04.7]} 11. exd4 {[%clk 0:02:46.1]}
11... Nd5 {[%clk 0:02:48.3]} 12. Qe4 {[%clk 0:02:31.9]} 12... Ncb4 {[%clk
0:02:43.2]} 13. Bd2 {[%clk 0:02:28]} 13... b6 {[%clk 0:02:42]} 14. Ne5 {[%clk
0:02:26.5]} 14... Bb7 {[%clk 0:02:41.2]} 15. Qg4 {[%clk 0:02:27.5]} 15... Rc8
{[%clk 0:02:35.7]} 16. Bb3 {[%clk 0:02:21.5]} 16... Nxc3 {[%clk 0:02:00.6]} 17.
bxc3 {[%clk 0:02:20]} 17... Nd5 {[%clk 0:01:52.5]} 18. c4 {[%clk 0:02:05.2]}
18... Nf6 {[%clk 0:01:51.9]} 19. Qf4 {[%clk 0:02:05.5]} 19... Bd6 {[%clk
0:01:42]} 20. Be3 {[%clk 0:01:22.3]} 20... Qc7 {[%clk 0:01:33.1]} 21. Bc2 {[%clk
0:00:57.8]} 21... Bxe5 {[%clk 0:00:48]} 22. dxe5 {[%clk 0:00:57.2]} 22... Qxc4
{[%clk 0:00:48.1]} 23. Qxc4 {[%clk 0:00:45.3]} 23... Rxc4 {[%clk 0:00:50]} 24.
exf6 {[%clk 0:00:46.8]} 24... Rxc2 {[%clk 0:00:46.4]} 25. fxg7 {[%clk
0:00:47.7]} 25... Kxg7 {[%clk 0:00:47.9]} 26. Rd7 {[%clk 0:00:48.2]} 26... Bd5
{[%clk 0:00:28.9]} 27. Rxa7 {[%clk 0:00:47.6]} 27... Rb8 {[%clk 0:00:29]} 28. h4
{[%clk 0:00:44.6]} 28... h5 {[%clk 0:00:29.6]} 29. Kh2 {[%clk 0:00:44.2]} 29...
b5 {[%clk 0:00:25.7]} 30. axb5 {[%clk 0:00:30.9]} 30... Rxb5 {[%clk 0:00:27.6]}
31. R1a3 {[%clk 0:00:23.1]} 31... Rc4 {[%clk 0:00:22.4]} 32. Bg5 {[%clk
0:00:23.2]} 32... Rg4 {[%clk 0:00:19.5]} 33. Rg3 {[%clk 0:00:20]} 33... Rbb4
{[%clk 0:00:09.2]} 34. Raa3 {[%clk 0:00:13.2]} 34... Rxg3 {[%clk 0:00:09.9]} 35.
Rxg3 {[%clk 0:00:13.5]} 35... Rg4 {[%clk 0:00:05.4]} 36. Rxg4 {[%clk 0:00:12.2]}
36... hxg4 {[%clk 0:00:07.3]} 37. Kg3 {[%clk 0:00:13.2]} 37... Kg6 {[%clk
0:00:04.7]} 38. Kxg4 {[%clk 0:00:12.7]} 38... Bxg2 {[%clk 0:00:05.2]} 1/2-1/2

[Event "*** Titled Tuesday Blitz"]
[Site "Chess.com"]
[Date "2019.12.03"]
[Round "7"]
[White "Spring199"]
[Black "Kislov_Oleg"]
[Result "0-1"]
[WhiteElo "2319"]
[BlackElo "2512"]
[TimeControl "180+2"]
[EndTime "14:35:56 PST"]
[Termination "Kislov_Oleg won by checkmate"]

1. d4 {[%clk 0:02:41]} 1... Nf6 {[%clk 0:02:59.6]} 2. c4 {[%clk 0:02:41.7]} 2...
e6 {[%clk 0:03:00.2]} 3. Nf3 {[%clk 0:02:41.9]} 3... d5 {[%clk 0:03:00.9]} 4. g3
{[%clk 0:02:42.7]} 4... Bb4+ {[%clk 0:03:00.4]} 5. Bd2 {[%clk 0:02:42.6]} 5...
Be7 {[%clk 0:03:01.3]} 6. Bg2 {[%clk 0:02:41.7]} 6... O-O {[%clk 0:03:01.9]} 7.
O-O {[%clk 0:02:41.2]} 7... Nbd7 {[%clk 0:02:59.7]} 8. Qc2 {[%clk 0:02:39.5]}
8... c6 {[%clk 0:02:59.7]} 9. b3 {[%clk 0:02:34.5]} 9... Ne4 {[%clk 0:02:57.8]}
10. Bc1 {[%clk 0:02:35.1]} 10... f5 {[%clk 0:02:57.2]} 11. Ba3 {[%clk
0:02:35.5]} 11... Bxa3 {[%clk 0:02:49.8]} 12. Nxa3 {[%clk 0:02:37.4]} 12... Qe7
{[%clk 0:02:39.8]} 13. Qb2 {[%clk 0:02:37.6]} 13... b6 {[%clk 0:02:32.3]} 14.
Nc2 {[%clk 0:02:33.5]} 14... Ba6 {[%clk 0:02:27.3]} 15. Nb4 {[%clk 0:02:24.3]}
15... Bb7 {[%clk 0:02:26.2]} 16. Nd3 {[%clk 0:02:22.4]} 16... c5 {[%clk
0:02:07]} 17. Nde5 {[%clk 0:02:11.1]} 17... dxc4 {[%clk 0:02:00]} 18. Nxc4
{[%clk 0:02:08.2]} 18... Rfd8 {[%clk 0:01:46.2]} 19. Rad1 {[%clk 0:02:07.3]}
19... cxd4 {[%clk 0:01:44.3]} 20. Nxd4 {[%clk 0:02:07.3]} 20... Ndc5 {[%clk
0:01:44]} 21. Nb5 {[%clk 0:02:01.9]} 21... a6 {[%clk 0:01:37.7]} 22. Nd4 {[%clk
0:01:56.4]} 22... b5 {[%clk 0:01:33.6]} 23. Na5 {[%clk 0:01:55.8]} 23... Rac8
{[%clk 0:01:23.5]} 24. Qa3 {[%clk 0:01:46.2]} 24... Ba8 {[%clk 0:01:13.2]} 25.
Qb2 {[%clk 0:01:11.5]} 25... Qf6 {[%clk 0:01:11.9]} 26. e3 {[%clk 0:01:10.6]}
26... b4 {[%clk 0:01:08.7]} 27. Nc4 {[%clk 0:01:10.3]} 27... Nc3 {[%clk
0:01:02.9]} 28. Rd2 {[%clk 0:01:08.9]} 28... Bxg2 {[%clk 0:01:02.9]} 29. Kxg2
{[%clk 0:01:09.3]} 29... N5e4 {[%clk 0:00:57.9]} 30. Rc2 {[%clk 0:01:06.6]}
30... e5 {[%clk 0:00:55]} 31. Nf3 {[%clk 0:01:05.4]} 31... Rd5 {[%clk 0:00:51]}
32. a3 {[%clk 0:01:00]} 32... a5 {[%clk 0:00:50.4]} 33. axb4 {[%clk 0:01:00]}
33... axb4 {[%clk 0:00:51.7]} 34. Ra1 {[%clk 0:01:01.2]} 34... g5 {[%clk
0:00:34.9]} 35. Ra7 {[%clk 0:00:55.7]} 35... g4 {[%clk 0:00:35]} 36. Nfd2 {[%clk
0:00:52.7]} 36... Nxf2 {[%clk 0:00:26.9]} 37. Qa1 {[%clk 0:00:26.9]} 37... Nd3
{[%clk 0:00:27.4]} 38. Ra8 {[%clk 0:00:26.1]} 38... Qc6 {[%clk 0:00:25.4]} 39.
Rxc8+ {[%clk 0:00:24.3]} 39... Qxc8 {[%clk 0:00:26.5]} 40. Kf1 {[%clk
0:00:19.9]} 40... Qc6 {[%clk 0:00:26]} 41. Qa7 {[%clk 0:00:19.6]} 41... Rd7
{[%clk 0:00:25.3]} 42. Qb8+ {[%clk 0:00:20.1]} 42... Kg7 {[%clk 0:00:24.1]} 43.
Nxe5 {[%clk 0:00:19.5]} 43... Qh1# {[%clk 0:00:24.6]} 0-1

[Event "*** Titled Tuesday Blitz"]
[Site "Chess.com"]
[Date "2019.12.03"]
[Round "7"]
[White "skoularikii"]
[Black "boasovietica"]
[Result "0-1"]
[WhiteElo "2537"]
[BlackElo "2405"]
[TimeControl "180+2"]
[EndTime "14:35:57 PST"]
[Termination "boasovietica won by resignation"]

1. e4 {[%clk 0:03:01.9]} 1... e5 {[%clk 0:03:00.6]} 2. Nf3 {[%clk 0:03:03]} 2...
Nc6 {[%clk 0:03:02]} 3. Bb5 {[%clk 0:03:04.6]} 3... a6 {[%clk 0:03:03.3]} 4. Ba4
{[%clk 0:03:04.7]} 4... Nf6 {[%clk 0:03:04.2]} 5. O-O {[%clk 0:03:05.3]} 5...
Be7 {[%clk 0:03:05.5]} 6. Re1 {[%clk 0:03:04.1]} 6... b5 {[%clk 0:03:06.3]} 7.
Bb3 {[%clk 0:03:04.9]} 7... d6 {[%clk 0:03:07.8]} 8. c3 {[%clk 0:03:05.6]} 8...
O-O {[%clk 0:03:08]} 9. h3 {[%clk 0:03:04.8]} 9... Bb7 {[%clk 0:03:09.4]} 10. d4
{[%clk 0:03:02.2]} 10... Nd7 {[%clk 0:03:10.2]} 11. a4 {[%clk 0:03:01.1]} 11...
exd4 {[%clk 0:03:07.6]} 12. cxd4 {[%clk 0:03:01.2]} 12... Bf6 {[%clk 0:03:08.5]}
13. Nc3 {[%clk 0:03:00.3]} 13... bxa4 {[%clk 0:03:01.4]} 14. Rxa4 {[%clk
0:02:56.6]} 14... Nb6 {[%clk 0:03:01.4]} 15. Ra3 {[%clk 0:02:54.8]} 15... Re8
{[%clk 0:02:56.3]} 16. Qd3 {[%clk 0:02:45]} 16... Nb4 {[%clk 0:02:51]} 17. Qb1
{[%clk 0:02:44.7]} 17... c5 {[%clk 0:02:48.3]} 18. Be3 {[%clk 0:02:41.1]} 18...
Rc8 {[%clk 0:02:40.5]} 19. dxc5 {[%clk 0:02:28.1]} 19... dxc5 {[%clk 0:02:40.9]}
20. Rd1 {[%clk 0:02:29.2]} 20... Qe7 {[%clk 0:02:39.2]} 21. Nd5 {[%clk
0:02:27.9]} 21... N6xd5 {[%clk 0:02:31.5]} 22. exd5 {[%clk 0:02:25.9]} 22... c4
{[%clk 0:02:28.7]} 23. d6 {[%clk 0:02:11]} 23... Qd7 {[%clk 0:02:08.9]} 24. Ba4
{[%clk 0:02:11.9]} 24... Bc6 {[%clk 0:02:03.5]} 25. Bxc6 {[%clk 0:02:03.1]}
25... Rxc6 {[%clk 0:02:03.7]} 26. Qc1 {[%clk 0:01:09.5]} 26... Nd3 {[%clk
0:01:57.3]} 27. Qc2 {[%clk 0:01:07.3]} 27... Nxb2 {[%clk 0:01:43.4]} 28. Rd4
{[%clk 0:00:52.7]} 28... c3 {[%clk 0:01:00.9]} 29. Rxc3 {[%clk 0:00:22]} 29...
Rxc3 {[%clk 0:00:57.1]} 30. Qxc3 {[%clk 0:00:23.9]} 30... Nd1 {[%clk 0:00:49.5]}
31. Qc7 {[%clk 0:00:18.8]} 31... Qxc7 {[%clk 0:00:50.5]} 32. dxc7 {[%clk
0:00:19.8]} 32... Bxd4 {[%clk 0:00:50.9]} 33. Bxd4 {[%clk 0:00:20.3]} 33... Rc8
{[%clk 0:00:51.6]} 34. Bb6 {[%clk 0:00:21.4]} 34... Nc3 {[%clk 0:00:48.3]} 35.
Ne5 {[%clk 0:00:14]} 35... Nd5 {[%clk 0:00:43.9]} 36. Ba5 {[%clk 0:00:14.6]}
36... Nxc7 {[%clk 0:00:39.2]} 37. Nc6 {[%clk 0:00:15.2]} 37... Nd5 {[%clk
0:00:37.9]} 38. Nd4 {[%clk 0:00:15.5]} 38... Rc5 {[%clk 0:00:37.6]} 39. Bd8
{[%clk 0:00:14.8]} 39... Rc4 {[%clk 0:00:35.3]} 40. Nb3 {[%clk 0:00:15.7]} 40...
Rb4 {[%clk 0:00:35.7]} 41. Na5 {[%clk 0:00:16]} 41... Rb2 {[%clk 0:00:35.4]} 42.
Kf1 {[%clk 0:00:16.2]} 42... Ra2 {[%clk 0:00:36]} 43. Nc4 {[%clk 0:00:17]} 43...
f6 {[%clk 0:00:35.1]} 44. Ba5 {[%clk 0:00:17.2]} 44... Ra4 {[%clk 0:00:35.2]}
45. Nb6 {[%clk 0:00:16]} 45... Rxa5 {[%clk 0:00:34.4]} 0-1

[Event "*** Titled Tuesday Blitz"]
[Site "Chess.com"]
[Date "2019.12.03"]
[Round "7"]
[White "nau64"]
[Black "Chessmatus"]
[Result "1-0"]
[WhiteElo "2268"]
[BlackElo "2372"]
[TimeControl "180+2"]
[EndTime "14:36:10 PST"]
[Termination "nau64 won by resignation"]

1. d4 {[%clk 0:03:01.9]} 1... Nf6 {[%clk 0:03:00.2]} 2. c4 {[%clk 0:03:02.1]}
2... g6 {[%clk 0:03:01.5]} 3. Nc3 {[%clk 0:03:02.8]} 3... d5 {[%clk 0:03:02.5]}
4. Nf3 {[%clk 0:03:03.4]} 4... Bg7 {[%clk 0:03:03.2]} 5. Bg5 {[%clk 0:03:04.5]}
5... Ne4 {[%clk 0:03:03.7]} 6. Bh4 {[%clk 0:03:05.8]} 6... Nxc3 {[%clk
0:03:04.6]} 7. bxc3 {[%clk 0:03:06.6]} 7... dxc4 {[%clk 0:03:05.9]} 8. e3 {[%clk
0:03:03.5]} 8... b5 {[%clk 0:03:06.7]} 9. Qb1 {[%clk 0:03:03.4]} 9... c6 {[%clk
0:03:07]} 10. a4 {[%clk 0:03:04]} 10... a6 {[%clk 0:03:05.1]} 11. Be2 {[%clk
0:02:30.9]} 11... Nd7 {[%clk 0:02:01.4]} 12. O-O {[%clk 0:02:20.8]} 12... O-O
{[%clk 0:01:59.1]} 13. Qe4 {[%clk 0:02:16.1]} 13... Nf6 {[%clk 0:01:26.1]} 14.
Qxc6 {[%clk 0:02:01.2]} 14... Rb8 {[%clk 0:01:26]} 15. axb5 {[%clk 0:02:01.5]}
15... axb5 {[%clk 0:01:27.9]} 16. Ra7 {[%clk 0:01:58.7]} 16... Bd7 {[%clk
0:01:16.5]} 17. Qa6 {[%clk 0:01:41.9]} 17... Nd5 {[%clk 0:01:09]} 18. Rc1 {[%clk
0:01:32.9]} 18... Ra8 {[%clk 0:00:51.4]} 19. Ne5 {[%clk 0:01:23.7]} 19... Rxa7
{[%clk 0:00:37.6]} 20. Qxa7 {[%clk 0:01:25.6]} 20... Bxe5 {[%clk 0:00:38.7]} 21.
dxe5 {[%clk 0:01:24.8]} 21... Bf5 {[%clk 0:00:32.1]} 22. Bf3 {[%clk 0:01:20.4]}
22... Bd3 {[%clk 0:00:27.3]} 23. e4 {[%clk 0:01:08.7]} 23... Nf4 {[%clk
0:00:28]} 24. Bxe7 {[%clk 0:01:05.7]} 24... Qc8 {[%clk 0:00:26.9]} 25. Bxf8
{[%clk 0:01:03.3]} 25... Kxf8 {[%clk 0:00:26.2]} 26. Qe3 {[%clk 0:01:01.7]}
26... g5 {[%clk 0:00:24.3]} 27. h3 {[%clk 0:00:59.7]} 27... h5 {[%clk
0:00:20.9]} 28. Ra1 {[%clk 0:00:51.4]} 28... Kg7 {[%clk 0:00:21.8]} 29. Bxh5
{[%clk 0:00:44.4]} 29... Qe6 {[%clk 0:00:20.5]} 30. Bf3 {[%clk 0:00:34.8]} 30...
Qxe5 {[%clk 0:00:20.8]} 31. Ra5 {[%clk 0:00:27.5]} 31... Qxc3 {[%clk 0:00:21]}
32. Rxb5 {[%clk 0:00:26.7]} 32... Qa1+ {[%clk 0:00:21.3]} 33. Kh2 {[%clk
0:00:27.3]} 33... Qf6 {[%clk 0:00:21.6]} 34. e5 {[%clk 0:00:24.6]} 34... Qf5
{[%clk 0:00:22.7]} 35. Bg4 {[%clk 0:00:21.5]} 35... Qg6 {[%clk 0:00:23.4]} 36.
Qd4 {[%clk 0:00:20.3]} 36... Ne6 {[%clk 0:00:23.3]} 37. Bxe6 {[%clk 0:00:20.7]}
37... Qxe6 {[%clk 0:00:24.6]} 38. Rb6 {[%clk 0:00:21.2]} 38... Qf5 {[%clk
0:00:25.7]} 39. Rf6 {[%clk 0:00:22]} 39... Qc8 {[%clk 0:00:24.8]} 40. e6 {[%clk
0:00:19.6]} 40... Qb8+ {[%clk 0:00:25.5]} 41. g3 {[%clk 0:00:20.1]} 41... fxe6
{[%clk 0:00:25.7]} 42. Rxe6+ {[%clk 0:00:19]} 42... Kg8 {[%clk 0:00:25.8]} 43.
Qd7 {[%clk 0:00:17.6]} 1-0